Cogmind - Beta 14 @@@ ROGUE MODE // 2024.12.17 @ 12:08:12 Player: Julie Result: Destroyed by Y-54 Guardian with Flak Gun Performance ------------- Evolutions (3) 1500 Regions Visited (7) 1400 Robots Destroyed (66) 330 Value Destroyed (1970) 1970 Prototype IDs (3) 60 Alien Tech Used (0) 0 Bonus (218) 218 TOTAL SCORE: 5478 Bonus ------- High Alert Combat Kills 51 Follower Combat Kills 435 Friendly Fire -268 Cogmind --------- Core Integrity 0/700 Matter 300/300 Energy 100/100 System Corruption 3% Temperature Cool (12) Movement Treading (170) Location -7/Lower Caves Parts ------- > --- POWER (2) -------- (None) > --- PROPULSION (4) --- Armored Treads > --- UTILITY (4) ------ Improved Salvage Targeting Computer Makeshift Hacking Suite > --- WEAPON (3) ------- (None) > --- INVENTORY (5) ---- Dynamic Insulation System Peak State ------------ > --- POWER ------------ Light Nuclear Core > --- PROPULSION ------- Improved Flight Unit Improved Flight Unit Cesium-ion Thruster Cesium-ion Thruster > --- UTILITY ---------- Improved Heat Sink High-capacity Storage Unit Hardened Light Armor Plating Hacking Suite > --- WEAPON ----------- Gauss Rifle Rocket Launcher > --- INVENTORY -------- Deuterium Engine Light Deuterium Engine Light Nuclear Core Armored Treads Advanced Weight Redist. System Advanced Weight Redist. System Particle Charger Improved Power Shielding Weapon Shielding Improved Medium Laser Shotgun Advanced EMP Blaster Rocket Launcher Mini Grenade Launcher Mace Great Maul Axe Blade Saw [Rating: 34] Favorites ----------- Power Deuterium Engine Engine Deuterium Engine Power Core Light Nuclear Core Propulsion Improved Treads Treads Improved Treads Flight Unit Improved Flight Unit Utility High-capacity Storage Unit Device Terrain Scanner Storage High-capacity Storage Unit Processor Targeting Computer Hackware Hacking Suite Protection Hardened Medium Armor Plating Weapon Autogun Energy Gun Particle Gun Ballistic Gun Autogun Ballistic Cannon Battle Cannon Launcher Rocket Launcher Impact Weapon Great Maul Slashing Weapon Chainsword Build | -11 -10 -10 -9 -9 -8 -7 -7 ------- Run | Yrd Mat Min Mat Sto Mat Fac Low Slots Evolved 6 | . . . 2 . 2 2 . Power 1 | . . . . . . 1 . Propulsion 2 | . . . 1 . 1 . . Utility 2 | . . . 1 . 1 . . Weapon 1 | . . . . . . 1 . Parts Attached 81 | 7 9 5 5 14 25 9 7 Power 12 | 2 . 3 1 . 2 2 2 Engine 7 | 2 . 3 1 . . . 1 Core 5 | . . . . . 2 2 1 Reactor . | . . . . . . . . Propulsion 31 | 2 2 . 1 7 14 4 1 Treads 22 | 2 2 . 1 7 7 2 1 Leg . | . . . . . . . . Wheel . | . . . . . . . . Hover . | . . . . . . . . Flight 9 | . . . . . 7 2 . Utility 16 | 1 2 1 2 2 5 . 3 Device 4 | . . 1 1 . 2 . . Storage 3 | 1 1 . . . . . 1 Processor 2 | . 1 . . . . . 1 Hackware 2 | . . . . . 1 . 1 Protection 5 | . . . 1 2 2 . . Artifact . | . . . . . . . . Weapon 22 | 2 5 1 1 5 4 3 1 Energy Gun 7 | 1 2 . 1 2 . 1 . Energy Cannon . | . . . . . . . . Ballistic Gun 9 | 1 3 . . 2 2 . 1 Ballistic Cannon 1 | . . 1 . . . . . Launcher 3 | . . . . 1 1 1 . Special Weapon . | . . . . . . . . Impact Weapon 1 | . . . . . 1 . . Slashing Weapon 1 | . . . . . . 1 . Piercing Weapon . | . . . . . . . . Special Melee Weapon . | . . . . . . . . Unidentified Prototypes 3 | . . . . . 2 1 . Parts Lost 26 | . . . 1 2 2 16 5 Power 4 | . . . . . . 2 2 Propulsion 9 | . . . . 2 . 7 . Utility 7 | . . . 1 . 1 3 2 Weapon 6 | . . . . . 1 4 1 Highest Loss Streak 5 | . . . 1 2 1 5 5 To Critical Strikes . | . . . . . . . . Average Slot Usage (%) 91 | . 99 100 87 97 98 60 27 Engine 10 | . 14 14 10 11 1 . 4 Core 1 | . . . . . 7 7 . Treads 25 | . 28 28 26 31 30 2 1 Flight 2 | . . . . . 4 16 . Device 8 | . . 13 9 1 10 8 . Storage 11 | . 14 14 11 11 7 . 2 Processor 2 | . 13 . . . . . 7 Hackware 1 | . . . . . 2 7 6 Protection 5 | . . . 7 20 14 4 . Energy Gun 4 | . 12 1 . 9 6 1 . Ballistic Gun 11 | . 15 14 11 10 2 3 3 Ballistic Cannon 5 | . . 12 10 . . . . Launcher 1 | . . . . 1 8 . . Peak Build Rating 34 | 6 13 16 21 25 34 32 23 Average Rating 17 | 4 9 15 18 20 30 25 12 On Entrance 14 | . 6 13 16 21 25 32 3 Naked Turns . | . . . . . . . . Heaviest Build 72 | 14 51 56 65 71 72 19 24 Greatest Support 86 | 40 46 46 66 66 86 50 20 Greatest Overweight (x) 7 | 4 2 1 1 2 2 4 7 Average Overweight (x) . | 1 . 1 . . . . 1 Largest Inventory Capacity 20 | 8 20 20 20 20 20 5 5 Average Capacity 17 | 7 15 20 20 20 18 5 5 Most Carried 20 | 3 15 20 17 18 20 5 2 Average Carried 12 | 2 8 16 15 15 15 3 . Final Capacity 20 | 8 20 20 20 20 5 5 5 Final Carried 18 | 3 15 17 15 18 5 2 1 Class Distribution -------------------- 87% | Mutant 7% | Scavenger-Mutant 5% | Sprinter Dominant Class ---------------- Mutant | -10/Materials Mutant | -10/Mines Mutant | -9/Materials Mutant | -9/Storage Scavenger-Mutant | -8/Materials Mutant | -7/Factory Mutant | -7/Lower Caves Resources | -11 -10 -10 -9 -9 -8 -7 -7 ----------- Run | Yrd Mat Min Mat Sto Mat Fac Low Matter Collected 1741 | 179 271 196 254 329 140 266 106 Remotely . | . . . . . . . . Salvage Created 2070 | . 486 63 344 532 350 295 . Parts 147 | . 33 4 26 45 26 13 . Haulers Intercepted 2 | . . . . . 2 . . Recyclers Shooed 2 | . . . . 2 . . . Parts Field Recycled . | . . . . . . . . Retrieved Matter . | . . . . . . . . Parts Self-Destructed 2 | . . . . . . . 2 Prevented . | . . . . . . . . Kills | -11 -10 -10 -9 -9 -8 -7 -7 ------- Run | Yrd Mat Min Mat Sto Mat Fac Low Combat Hostiles Destroyed 50 | . 12 2 8 16 6 6 . Melee 5 | . . . . . . 5 . Guns 33 | . 12 . 5 14 1 1 . Cannons 5 | . . 2 3 . . . . AOE 7 | . . . . 2 5 . . Classes Destroyed 13 | . 4 . 2 2 5 . . Worker 4 | . 1 . . 1 1 1 . Builder 3 | . . . 1 . 1 1 . Hauler 2 | . . . . . 2 . . Recycler 1 | . . . . . 1 . . Operator 1 | . . . . . 1 . . Watcher 4 | . 2 . 1 1 . . . Swarmer 11 | . 3 . 1 4 . 3 . Grunt 29 | . 9 2 6 6 3 3 . Brawler 1 | . . . . 1 . . . Duelist 1 | . . . . . 1 . . Protector 1 | . . . . 1 . . . Sentry 7 | . . . 2 4 1 . . Hunter 1 | . . . . . 1 . . Best Kill Streak 7 | . 4 2 2 5 7 3 . Combat Bots Only 4 | . 3 2 2 3 4 2 . Max Kills in Single Turn 2 | . 1 1 1 1 2 1 . Gunslinging . | . . . . . . . . Exploded 1 | . . . . 1 1 . . Melee 1 | . . . . . . 1 . Uniques/NPCs Destroyed . | . . . . . . . . Combat | -11 -10 -10 -9 -9 -8 -7 -7 -------- Run | Yrd Mat Min Mat Sto Mat Fac Low Hostile Shots Fired 477 | . 62 9 46 70 41 158 91 Missed 175 | . 24 1 15 25 21 53 36 Damage Taken 3971 | . 426 102 333 527 527 1553 503 Core 937 | . 96 . 58 46 36 467 234 Absorbed by Shields 59 | . . . 47 12 . . . Redirected to Shielding 101 | . . . . . . 101 . Regen/Repaired (Parts) 44 | . . . 44 . . . . Core Remaining (%) 82 | 100 . 61 . 74 93 . . Volleys Fired 159 | . 50 7 28 45 17 12 . Largest 2 | . 2 2 2 2 2 1 . Hottest 108 | . 85 62 88 98 108 65 . Shots Fired 283 | . 95 16 55 71 33 13 . Gun 231 | . 95 9 29 68 17 13 . Cannon 33 | . . 7 26 . . . . Launcher 19 | . . . . 3 16 . . Special . | . . . . . . . . Kinetic 178 | . 53 16 54 48 4 3 . Thermal 74 | . 30 . 1 20 13 10 . Explosive 19 | . . . . 3 16 . . Electromagnetic 12 | . 12 . . . . . . Robot Hit Streak 9 | . 7 8 7 9 3 4 . Robot Miss Streak 8 | . 3 1 4 8 3 2 . Penetration Max . | . . . . . . . . Secondary Targets 5 | . 4 . . 1 . . . Max Gunslinging Chain 1 | . 1 . . 1 . . . Shots Hit Robots 181 | . 55 12 28 46 12 28 . Core Hits 126 | . 27 5 17 45 22 9 1 Critical Kills . | . . . . . . . . Critical Parts Destroyed 1 | . . . 1 . . . . Critical Strikes 10 | . 3 . 2 . . 5 . Burn 4 | . 3 . . . . 1 . Destroy 1 | . . . 1 . . . . Blast 1 | . . . 1 . . . . Sever 4 | . . . . . . 4 . Melee Attacks 26 | . . . . . . 26 . Impact . | . . . . . . . . Slashing 26 | . . . . . . 26 . Piercing . | . . . . . . . . Sneak Attacks 2 | . . . . . . 2 . Combat Hostiles . | . . . . . . . . Follow-up Attacks . | . . . . . . . . Damage Inflicted 4564 | . 821 238 605 1001 939 956 4 Guns 2021 | . 750 89 268 689 98 127 . Cannons 464 | . . 136 328 . . . . Explosions 1201 | . 66 . . 294 841 . . Melee 815 | . . . . . . 815 . Ramming 63 | . 5 13 9 18 . 14 4 Kinetic 1595 | . 331 225 581 401 34 23 . Thermal 965 | . 420 . 15 288 138 104 . Explosive 1061 | . . . . 294 767 . . Electromagnetic 65 | . 65 . . . . . . Impact . | . . . . . . . . Slashing 815 | . . . . . . 815 . Piercing . | . . . . . . . . Highest Corruption 3 | . 2 2 . 1 2 3 3 Average Corruption 2 | . 2 2 . 1 2 2 3 Corruption Purged . | . . . . . . . . Corruption Blocked . | . . . . . . . . Effects 58 | . 17 29 . . 3 5 4 Message Errors 14 | . 4 7 . . . 1 2 Matter Fused 10 | . 3 5 . . 1 . 1 Heat Flow Errors 5 | . 1 2 . . . 1 1 Energy Discharges 11 | . 3 6 . . 1 1 . Parts Rejected 1 | . . . . . . 1 . Data Loss (minor) 8 | . 1 7 . . . . . Data Loss (major) 3 | . 2 . . . 1 . . Misfires 6 | . 3 2 . . . 1 . Overload Shots . | . . . . . . . . Overflow Damage 112 | . . . . . 42 70 . Projectiles . | . . . . . . . . Explosions 42 | . . . . . 42 . . Melee 70 | . . . . . . 70 . Knockbacks 5 | . . 2 3 . . . . Impact . | . . . . . . . . Kinetic 5 | . . 2 3 . . . . Secondary . | . . . . . . . . Self-Inflicted Damage 317 | . . . . 49 263 5 . Shots 10 | . . . . 3 7 . . Rammed 23 | . 2 3 2 4 . 6 6 Targets Rammed 23 | . 2 3 2 4 . 6 6 Kicked . | . . . . . . . . Crushed . | . . . . . . . . Highest Temperature 399 | . 294 229 124 399 102 192 105 Average Temperature 77 | . 84 92 35 96 46 77 60 Received Heat Transfer 1201 | . 216 57 166 204 99 393 66 Effects 1 | . . . . 1 . . . Interference 1 | . . . . 1 . . . Siege Activations . | . . . . . . . . Robots Corrupted . | . . . . . . . . Combat Hostiles . | . . . . . . . . Parts Fried 1 | . 1 . . . . . . Impact Corruptions . | . . . . . . . . Robots Melted . | . . . . . . . . Combat Hostiles . | . . . . . . . . Parts Melted 6 | . 4 . . . . 2 . Heat Transferred 2030 | . 1173 . 20 343 161 333 . Parts Sabotaged . | . . . . . . . . Parts Stolen . | . . . . . . . . Parts Stripped . | . . . . . . . . Power Chain Reactions 1 | . 1 . . . . . . Alert | -11 -10 -10 -9 -9 -8 -7 -7 ------- Run | Yrd Mat Min Mat Sto Mat Fac Low Peak Influence 695 | . 265 65 478 440 529 695 . Initial 240 | . . 3 . 142 185 240 . Average 168 | . 103 3 300 273 336 439 . Maximum Alert Level 2 | . 1 . 2 2 2 2 . Low Security (%) 57 | 100 78 100 20 22 9 . . Level 1 33 | . 21 . 60 65 83 57 . Level 2 8 | . . . 18 11 6 42 . Level 3 . | . . . . . . . . Level 4 . | . . . . . . . . Level 5 . | . . . . . . . . High Security . | . . . . . . . . Max Security . | . . . . . . . . Squads Dispatched 23 | . 3 1 6 9 2 2 . Investigation 2 | . . 1 1 . . . . Extermination . | . . . . . . . . Reinforcement 13 | . 3 . 5 1 2 2 . Assault 2 | . . . . 2 . . . Garrison 6 | . . . . 6 . . . Intercept . | . . . . . . . . Searches Triggered 1 | . . . . . . 1 . Construction Impeded 1 | . . . 1 . . . . Haulers Reinforced . | . . . . . . . . Active Scanning Responses . | . . . . . . . . Cargo Convoy Interrupts . | . . . . . . . . Stealth | -11 -10 -10 -9 -9 -8 -7 -7 --------- Run | Yrd Mat Min Mat Sto Mat Fac Low Distress Signals 9 | . 3 . 4 1 . 1 . Communications Jammed . | . . . . . . . . Distress Signals . | . . . . . . . . Times Spotted 121 | . 20 2 28 20 20 29 2 Peak Tracking Total 8 | . 4 2 4 5 8 6 2 Tactical Retreats 12 | . 1 . 1 1 1 8 . Traps | -11 -10 -10 -9 -9 -8 -7 -7 ------- Run | Yrd Mat Min Mat Sto Mat Fac Low Traps Triggered 5 | . 1 . . 4 . . . Indirectly . | . . . . . . . . Trap Hack Attempts . | . . . . . . . . Triggered . | . . . . . . . . Disarmed 4 | . . . . . 4 . . Reprogrammed . | . . . . . . . . Reused . | . . . . . . . . Traps Extracted . | . . . . . . . . Installed . | . . . . . . . . Triggered . | . . . . . . . . Machines | -11 -10 -10 -9 -9 -8 -7 -7 ---------- Run | Yrd Mat Min Mat Sto Mat Fac Low Machines Disabled 14 | . . 1 . 1 7 5 . Max in Single Turn 4 | . . 1 . 1 2 4 . Machines Repaired . | . . . . . . . . Machines Dismantled . | . . . . . . . . Machines Sabotaged . | . . . . . . . . Overloaded Fab Kills . | . . . . . . . . Hacking | -11 -10 -10 -9 -9 -8 -7 -7 --------- Run | Yrd Mat Min Mat Sto Mat Fac Low Machines Accessed 14 | . 3 1 2 2 3 2 1 Terminals 10 | . 3 . 1 2 3 . 1 Fabricators . | . . . . . . . . Repair Stations 1 | . . . 1 . . . . Recycling Units . | . . . . . . . . Scanalyzers 2 | . . . . . . 2 . Garrison Access . | . . . . . . . . Total Hacks 29 | . 5 1 4 4 7 7 1 Successful 18 | . 2 1 2 3 3 6 1 Failed 11 | . 3 . 2 1 4 1 . Catastrophic 2 | . . . . 1 1 . . Database Lockouts . | . . . . . . . . Manual 1 | . . . . . 1 . . Terminals 18 | . 5 . 1 4 7 . 1 Fabricators . | . . . . . . . . Repair Stations 3 | . . . 3 . . . . Recycling Units . | . . . . . . . . Scanalyzers 7 | . . . . . . 7 . Garrison Access . | . . . . . . . . Terminal Hacks 10 | . 2 1 . 3 3 . 1 Record 3 | . . . . . 2 . 1 Robot Schematic 1 | . . . . 1 . . . Open Door 2 | . . 1 . 1 . . . Alert Level 1 | . . . . 1 . . . Locate Traps 1 | . 1 . . . . . . Disarm Traps 1 | . . . . . 1 . . Zone Layout 1 | . 1 . . . . . . Fabricator Hacks . | . . . . . . . . Repair Station Hacks 2 | . . . 2 . . . . Scan Component 1 | . . . 1 . . . . Repair 1 | . . . 1 . . . . Recycling Unit Hacks . | . . . . . . . . Scanalyzer 6 | . . . . . . 6 . Insert Component 3 | . . . . . . 3 . Analyze 3 | . . . . . . 3 . Garrison Access Hacks . | . . . . . . . . Unauthorized Hacks . | . . . . . . . . Terminals . | . . . . . . . . Fabricators . | . . . . . . . . Repair Stations . | . . . . . . . . Recycling Units . | . . . . . . . . Scanalyzers . | . . . . . . . . Garrison Access . | . . . . . . . . Data Cores Recovered . | . . . . . . . . Used . | . . . . . . . . Hacking Detections 7 | . 2 . 1 1 1 2 . Full Trace Events 1 | . . . 1 . . . . Feedback Events . | . . . . . . . . Feedback Blocked . | . . . . . . . . Robot Schematics Acquired 1 | . . . . 1 . . . Robots Built . | . . . . . . . . Authchips . | . . . . . . . . Time . | . . . . . . . . Total Robot Build Rating . | . . . . . . . . Part Schematics Acquired 2 | . . . . . . 2 . Parts Built . | . . . . . . . . Authchips . | . . . . . . . . Time . | . . . . . . . . Total Part Build Rating . | . . . . . . . . Parts Repaired 1 | . . . 1 . . . . Time 38 | . . . 38 . . . . Parts Recycled . | . . . . . . . . Recycled Matter . | . . . . . . . . Retrieved Matter . | . . . . . . . . Retrieved Components . | . . . . . . . . Parts Scanalyzed 2 | . . . . . . 2 . Part Schematics Acquired 2 | . . . . . . 2 . Parts Damaged . | . . . . . . . . Bothacking | -11 -10 -10 -9 -9 -8 -7 -7 ------------ Run | Yrd Mat Min Mat Sto Mat Fac Low Used RIF Installer . | . . . . . . . . Robots Hacked . | . . . . . . . . Non-combat . | . . . . . . . . Combat . | . . . . . . . . Robot Hacks Applied . | . . . . . . . . Relay Couplers Released . | . . . . . . . . Fabnet Peak Effective % . | . . . . . . . . Robots Rewired . | . . . . . . . . Allies Hacked . | . . . . . . . . Hacks Repelled . | . . . . . . . . Allies | -11 -10 -10 -9 -9 -8 -7 -7 -------- Run | Yrd Mat Min Mat Sto Mat Fac Low Total Allies 5 | . . 3 . 2 . . . Largest Group 3 | . . 3 3 2 1 . . Highest-Rated Group 62 | . . 40 40 62 31 . . Highest-Rated Ally 31 | . . 16 16 31 31 . . Total Orders . | . . . . . . . . Ally Attacks 84 | . . . 68 12 4 . . Total Damage 1020 | . . . 792 186 42 . . Kills 17 | . . . 14 2 1 . . Allies Corrupted . | . . . . . . . . Allies Melted . | . . . . . . . . Intel | -11 -10 -10 -9 -9 -8 -7 -7 ------- Run | Yrd Mat Min Mat Sto Mat Fac Low Robot Analysis Total . | . . . . . . . . Derelict Logs Recovered 2 | . . 2 . . . . . Drone Launches . | . . . . . . . . Drone Recoveries . | . . . . . . . . Exploration | -11 -10 -10 -9 -9 -8 -7 -7 ------------- Run | Yrd Mat Min Mat Sto Mat Fac Low Turns Passed 6743 | 126 1114 2338 993 762 644 604 162 Spaces Moved 3778 | 66 454 957 426 274 478 1026 97 Core 162 | 45 . . . . . 37 80 Treads 2522 | 21 454 957 426 274 286 87 17 Legs . | . . . . . . . . Wheels . | . . . . . . . . Hover . | . . . . . . . . Flight 1094 | . . . . . 192 902 . Fastest Speed 28 | 50 160 240 160 160 28 28 50 Average Speed 157 | 173 208 240 200 223 109 46 145 Slowest Speed 400 | 250 320 240 240 320 320 250 400 Overloaded Moves . | . . . . . . . . Propulsion Burnouts . | . . . . . . . . Robots Hopped 8 | . . . . . 1 7 . Cave-ins Triggered . | . . . . . . . . Exploration Rate (%) 44 | 5 71 99 52 46 45 22 19 Regions Visited 7 Branch Regions 3 Pre-discovered Areas . | . . . . . . . . Known Exits Taken . | . . . . . . . . Unknown Exits Taken 7 | 1 1 1 1 1 1 1 . Scrap Searched 4 | . . 2 . . . . 2 Spaces Dug . | . . . . . . . . Terrain Destroyed 190 | . 5 . 2 8 154 21 . Melee . | . . . . . . . . Projectile 3 | . . . 2 . 1 . . AOE 187 | . 5 . . 8 153 21 . Terrain Rammed . | . . . . . . . . Walls Destroyed . | . . . . . . . . Machines Disabled . | . . . . . . . . Actions | -11 -10 -10 -9 -9 -8 -7 -7 --------- Run | Yrd Mat Min Mat Sto Mat Fac Low Total 4207 | 74 528 982 512 345 568 1087 111 Wait 75 | . 7 . 52 4 4 8 . Move 3755 | 65 453 956 425 273 475 1011 97 Hop 8 | . . . . . 1 7 . Pick Up 42 | 2 7 6 . 5 18 3 1 Fast Attach 31 | 6 1 . 2 5 6 6 5 Attach 18 | . . . 2 2 9 3 2 Detach 6 | . . . . . 5 1 . Swap 32 | 1 8 5 1 7 10 . . Drop 32 | . . 5 . . 23 4 . Fire 159 | . 50 7 28 45 17 12 . Melee 26 | . . . . . . 26 . Ram 6 | . . . . . . 6 . Kick . | . . . . . . . . Crush 17 | . 2 3 2 4 . . 6 Escape Stasis . | . . . . . . . . Rewire . | . . . . . . . . Trap . | . . . . . . . . Miscellaneous . | . . . . . . . . Route ------- -11/Scrapyard -10/Materials (discovered 4 exits: *Mat x3 / *Min) -10/Mines (discovered 2 exits: *Mat x2) -9/Materials (discovered 2 exits: *Mat / *Sto) -9/Storage -8/Materials -7/Factory (discovered 2 exits: [*Fac] / *Low) -7/Lower Caves History --------- Turn | Location | Event 28 | -11/Scrapyard | Discovered new exit (range 15) 127 | -11/Scrapyard | Entered Materials 307 | -10/Materials | Build established: Mutant 474 | -10/Materials | Discovered new exit (range 14) 474 | -10/Materials | Discovered new exit (range 16) 556 | -10/Materials | Discovered new exit (range 16) 897 | -10/Materials | Discovered new exit (range 7) 1241 | -10/Materials | Entered Mines 1296 | -10/Mines | Found a hidden stash of uninstalled traps 1478 | -10/Mines | A weapon hastily lodged in a ceiling crevice suddenly fell to the ground 1698 | -10/Mines | Learned Materials emergency access door positions 1705 | -10/Mines | Learned Materials trap positions 1758 | -10/Mines | Met a Derelict shopkeep closing up shop 2158 | -10/Mines | Discovered new exit (range 13) 2215 | -10/Mines | Assisted by bots powering up and referring to "LRC-V3" 2525 | -10/Mines | Discovered new exit (range 10) 3579 | -10/Mines | Entered Materials 3579 | -9/Materials | Accompanied by 3 allies 3579 | -9/Materials | Evolved 2 slots: Propulsion x1, Utility x1 3580 | -9/Materials | Loaded intel: 9 trap records 4347 | -9/Materials | Repaired Deuterium Engine 4382 | -9/Materials | Discovered new exit (range 4) 4444 | -9/Materials | Discovered new exit (range 6) 4572 | -9/Materials | Entered Storage 4741 | -9/Storage | Garrison activated, responded to threat 5082 | -9/Storage | Garrison activated, responded to threat 5207 | -9/Storage | Discovered new exit (range 16) 5224 | -9/Storage | Met a pair of Derelict thieves 5334 | -9/Storage | Entered Materials 5334 | -8/Materials | Accompanied by 1 ally 5334 | -8/Materials | Evolved 2 slots: Propulsion x1, Utility x1 5786 | -8/Materials | Build established: Scavenger-Mutant 5977 | -8/Materials | Discovered new exit (range 3) 5978 | -8/Materials | Entered Factory 5978 | -7/Factory | Evolved 2 slots: Power x1, Weapon x1 6081 | -7/Factory | Discovered new exit (range 14) 6192 | -7/Factory | Build established: Sprinter 6298 | -7/Factory | Lost 4 parts (2n1u1w) 6378 | -7/Factory | Search patrols dispatched 6424 | -7/Factory | Lost 5 parts (1p2n2u) 6502 | -7/Factory | Discovered new exit (range 8) 6531 | -7/Factory | Build established: Mutant 6538 | -7/Factory | Core integrity fell below 50% 6551 | -7/Factory | Lost 3 parts (1p1n1w) 6582 | -7/Factory | Entered Lower Caves 6678 | -7/Lower Caves | Attracted the attention of an 0b10 checkpoint 6688 | -7/Lower Caves | Core integrity fell below 20% 6741 | -7/Lower Caves | Lost 5 parts (2p2u1w) 6744 | -7/Lower Caves | Destroyed by Y-54 Guardian with Flak Gun Last Messages --------------- 06674_ Acquired Neutrino Core. 06676_ Acquired 13 matter. 06677_ Hvy. Battle Rifle destroyed. 06678_ Y-54 Guardian: "INTERCEPTING UNREGISTERED DERELICT." 06684_ Hacking Suite destroyed. 06687_ Neutrino Core destroyed. 06699_ Lgt. Deuterium Engine destroyed. 06701_ Searching scrap... 06701_ Found Mak. Axe. 06701_ Found Arm. Treads. 06701_ Found Mak. Hacking Suite. 06701_ Found 49 Matter. 06702_ Acquired Arm. Treads. 06705_ Acquired Mak. Hacking Suite. 06710_ Com. Battery destroyed. 06710_ Acquired 15 matter. 06730_ Slammed into S-27 Virus. 06732_ System corrupted: Heat flow error (+139). 06732_ Slammed into S-27 Virus. Map ----- +----------------------------------------------------+ | ?????????????????????????????????????????????????? | | ?????????????????????????????????????????????????? | | ?????????????????????????????????????????????????? | | ?????????????????????????????????????????????????? | | ?????????????????????????????????????????????????? | | ?????????????????????????????????????????????????? | | ?????????????????????????????????????????????????? | | ?????????????????????????????????????????????????? | | ?????????????????????????????????????????????????? | | ?????????????????????????????????????????????????# | | ??????????????????????????????????????###???????# | | ??????????????????????????????????????# ##????## | | ??????????????????????####????????????# ##?## | | ??????????????????????? ????????????# ## | | ???????????????????????# ????????????# | | ???????????????????????# ##???####???# | | ???????????????????????# ##?## ##### | | ???????????????????????# ### ! | | ??????????????????????## ## % | | ?????????????????????## # | | ????????????????????## | | ????????????????????# | | ????????????????????# / ### ## ## | | ????????????????????## ##% ##?## ### #?# | | ?????????????????????## ### #???# #?# #??## | | ???????????????????????# @Y #??## ### ## #???# | | ???????????????????????#%s #??# #?# #???# | | ???????????????????????#%%####?## #####??##???# | | ???????????????????????# #????# ############# | | ???????????????????????# #????# | | ???????????????????????# #???# | | ???????????????????????# #??## # +#### | | ???????????????????????# #??#### #" "" " | | ??????????????????????? #????## #"" | | ?????????????????????? #?????# # T | | ?????????????????????# ##???### # " | | ?????????????????????## ##????# # | | ??????????????????????# #??# # | | ??????????????????????# ??# # " " | | ?????????????????????? ???## # #" " | | ?????????????????????? ????## # #" | | ?????????????????????? ?????## ## ###### # | | ?????????????????????# ??????##?# ???? | | ????????????????????? ###????????# ???? | | ????????????????????? ###???????????####???? | | ?????????????????????????????????????????????#### | | ?????????????????????????????????????????????????# | | ?????????????????????????????????????????????????? | | ?????????????????????????????????????????????????? | | ?????????????????????????????????????????????????? | +----------------------------------------------------+ Best States ------------- Heat Dissipation 45 Energy Generation 26 Energy Capacity 555 Matter Stores 300 Matter Capacity 300 Sight Range 16 Terrain Scan Range 14 Terrain Scan Density 10 Additional Mass Support 9 Armor Coverage 375 Power Shielding 66 Evasion (%) 64 Targeting Accuracy 5 Recoil Reduction 4 Offensive Hacking 11 Item Schematics ----------------- Lgt. Deuterium Engine | -7/Factory | Scanalyzed Chainsword | -7/Factory | Scanalyzed Robot Schematics ------------------ G-34 Mercenary | -9/Storage | Hacked Fabricated ------------ Nothing Alien Tech Used ----------------- None Achievements -------------- Novice Programmer Challenges ------------ None Game ------ Seed HardlightGodLog Manual? 0 Play Time 00:50:23 Cumulative 21.1 hours Start 2024.12.17 @ 11:14:13 End 2024.12.17 @ 12:08:12 Sessions 1 Manual Loads 0 Difficulty Rogue Special Mode None Game No. 62 Rogue 62 Adventurer 0 Explorer 0 Win Type - Total 0 Types 0/0/0/0/0/0/0/0/0 Lore% 10 Gallery% 24 Achievement% 21 Wizard Run 0 Options --------- Layout 1 ASCII 0 Keyboard 1 Movement Arrows Keybinds 1 Fullscreen 1 Font 18/SmallcapsGlow Map View 25x20 Zoom Use 87% Tactical HUD 1 Map Filters NONE Filters NONE Steam 1 RUN: 4b7b655d-427b-4cc8-9241-dc2a2c1e275d